Cogmind - Beta 13 @@@ ROGUE MODE // 2024.03.26 @ 12:57:06 Player: mirxivus Result: Destroyed by S-10 Pest with Light Assault Rifle Performance ------------- Evolutions (1) 500 Regions Visited (2) 400 Robots Destroyed (18) 90 Value Destroyed (450) 450 Prototype IDs (3) 60 Alien Tech Used (0) 0 Bonus (0) 0 TOTAL SCORE: 1500 Bonus ------- None Cogmind --------- Core Integrity 0/400 Matter 233/300 Energy 72/100 System Corruption 6% Temperature Cool (45) Movement Core (1400) Ox27 Location -9/Materials Parts ------- > --- POWER (2) -------- (None) > --- PROPULSION (2) --- (None) > --- UTILITY (2) ------ Huge Storage Unit > --- WEAPON (3) ------- Beam Rifle > --- INVENTORY (25) --- Heat Sink Datajack Peak State ------------ > --- POWER ------------ Light Ion Engine > --- PROPULSION ------- Aluminum Leg Aluminum Leg > --- UTILITY ---------- Huge Storage Unit Sensor Array > --- WEAPON ----------- Small Laser Light Assault Rifle Advanced EMP Blaster > --- INVENTORY -------- Aluminum Leg Heat Sink Field Laser Field Laser Light Assault Rifle Advanced EMP Blaster Datajack [Rating: 12] Favorites ----------- Power Light Ion Engine Engine Light Ion Engine Propulsion Aluminum Leg Leg Aluminum Leg Flight Unit VTOL Module Utility Huge Storage Unit Device Heat Sink Storage Huge Storage Unit Protection Medium Armor Plating Weapon Grenade Launcher Energy Gun Small Laser Ballistic Gun Light Assault Rifle Launcher Grenade Launcher Special Melee Weapon Datajack Build | -11 -10 -9 ------- Run | Yrd Mat Mat Slots Evolved 2 | . . 2 Power 1 | . . 1 Propulsion . | . . . Utility . | . . . Weapon 1 | . . 1 Parts Attached 32 | 6 15 11 Power 3 | 1 1 1 Engine 3 | 1 1 1 Core . | . . . Reactor . | . . . Propulsion 12 | 2 9 1 Treads . | . . . Leg 10 | 2 7 1 Wheel . | . . . Hover . | . . . Flight 2 | . 2 . Utility 4 | 1 2 1 Device 2 | 1 . 1 Storage 1 | . 1 . Processor . | . . . Hackware . | . . . Protection 1 | . 1 . Artifact . | . . . Weapon 13 | 2 3 8 Energy Gun 4 | . 1 3 Energy Cannon . | . . . Ballistic Gun 5 | 2 . 3 Ballistic Cannon . | . . . Launcher 3 | . 1 2 Special Weapon . | . . . Impact Weapon . | . . . Slashing Weapon . | . . . Piercing Weapon . | . . . Special Melee Weapon 1 | . 1 . Unidentified Prototypes 1 | . . 1 Corrupted Parts 1 | . . 1 System Corruption 6 | . . 6 Parts Lost 15 | . 1 14 Power 2 | . 1 1 Propulsion 3 | . . 3 Utility 2 | . . 2 Weapon 8 | . . 8 Highest Loss Streak 8 | . 1 8 To Critical Strikes . | . . . Average Slot Usage (%) 82 | . 97 71 Engine 5 | . 13 . Leg 21 | . 24 19 Flight 1 | . 3 . Device 2 | . 4 1 Storage 10 | . 10 11 Protection 10 | . 12 8 Energy Gun 6 | . . 11 Ballistic Gun 6 | . 3 9 Launcher 10 | . 12 9 Special Melee Weapon 5 | . 11 . Naked Turns . | . . . Heaviest Build 94 | 6 94 92 Greatest Support 20 | 20 20 20 Greatest Overweight (x) 30 | . 4 30 Average Overweight (x) 2 | . 1 4 Largest Inventory Capacity 25 | 5 25 25 Average Capacity 21 | 5 19 25 Most Carried 10 | 3 7 10 Average Carried 5 | . 5 5 Final Capacity 25 | 5 25 25 Final Carried 6 | 1 6 2 Class Distribution -------------------- 45% | Bomber 40% | Mutant 9% | Sprinter 3% | Scavenger-Mutant Dominant Class ---------------- Mutant | -10/Materials Bomber | -9/Materials Resources | -11 -10 -9 ----------- Run | Yrd Mat Mat Matter Collected 510 | 274 119 117 Remotely . | . . . Salvage Created 312 | 34 154 124 Parts 35 | 3 18 14 Haulers Intercepted . | . . . Recyclers Shooed . | . . . Parts Field Recycled . | . . . Retrieved Matter . | . . . Parts Self-Destructed . | . . . Prevented . | . . . Kills | -11 -10 -9 ------- Run | Yrd Mat Mat Combat Hostiles Destroyed 13 | 1 9 3 Guns 4 | 1 3 . AOE 9 | . 6 3 Classes Destroyed 7 | 1 4 2 Worker 2 | . . 2 Tunneler 1 | . 1 . Operator 1 | . 1 . Watcher 1 | . 1 . Swarmer 7 | . 6 1 Grunt 4 | 1 3 . Sentry 2 | . . 2 Best Kill Streak 5 | 1 5 3 Combat Bots Only 5 | 1 5 2 Max Kills in Single Turn 2 | 1 2 2 Gunslinging 1 | . 1 . Exploded 2 | . 2 1 Melee . | . . . Uniques/NPCs Destroyed . | . . . Combat | -11 -10 -9 -------- Run | Yrd Mat Mat Hostile Shots Fired 205 | 8 42 155 Missed 65 | 2 11 52 Damage Taken 1813 | 65 422 1326 Core 498 | 11 83 404 Absorbed by Shields . | . . . Core Remaining (%) 78 | 95 62 . Volleys Fired 35 | 7 16 12 Largest 3 | 2 2 3 Hottest 126 | 40 40 126 Shots Fired 56 | 14 21 21 Gun 45 | 14 12 19 Cannon . | . . . Launcher 11 | . 9 2 Special . | . . . Kinetic 32 | 14 12 6 Thermal 13 | . . 13 Explosive 9 | . 9 . Electromagnetic 2 | . . 2 Robot Hit Streak 9 | 9 4 2 Robot Miss Streak 4 | 2 4 4 Penetration Max . | . . . Secondary Targets 2 | . 2 . Max Gunslinging Chain 1 | . 1 . Shots Hit Robots 32 | 10 14 8 Core Hits 24 | 2 15 7 Critical Kills . | . . . Critical Parts Destroyed . | . . . Critical Strikes . | . . . Melee Attacks 4 | . 4 . Impact . | . . . Slashing . | . . . Piercing . | . . . Sneak Attacks . | . . . Combat Hostiles . | . . . Follow-up Attacks . | . . . Damage Inflicted 1052 | 96 608 348 Guns 243 | 96 61 86 Cannons . | . . . Explosions 809 | . 547 262 Melee . | . . . Ramming . | . . . Kinetic 181 | 96 61 24 Thermal 88 | . . 88 Explosive 685 | . 547 138 Electromagnetic 98 | . . 98 Impact . | . . . Slashing . | . . . Piercing . | . . . Highest Corruption 6 | . 1 6 Average Corruption 1 | . 1 6 Corruption Purged . | . . . Corruption Blocked . | . . . Effects 2 | . 2 . Data Loss (major) 1 | . 1 . Weapon Failures 1 | . 1 . Overload Shots . | . . . Overflow Damage 63 | . 6 57 Projectiles . | . . . Explosions 63 | . 6 57 Melee . | . . . Knockbacks . | . . . Impact . | . . . Kinetic . | . . . Secondary . | . . . Self-Inflicted Damage 486 | . 150 336 Shots 11 | . 6 5 Rammed . | . . . Targets Rammed . | . . . Kicked . | . . . Crushed . | . . . Highest Temperature 84 | 12 4 84 Average Temperature 24 | 9 3 29 Received Heat Transfer 243 | 36 42 165 Siege Activations . | . . . Robots Corrupted . | . . . Combat Hostiles . | . . . Parts Fried . | . . . Impact Corruptions . | . . . Robots Melted . | . . . Combat Hostiles . | . . . Parts Melted . | . . . Heat Transferred 136 | . . 136 Parts Sabotaged . | . . . Parts Stolen . | . . . Parts Stripped . | . . . Power Chain Reactions 1 | . . 1 Alert | -11 -10 -9 ------- Run | Yrd Mat Mat Peak Influence 292 | 20 292 198 Initial 59 | . 13 59 Average 102 | 1 181 53 Maximum Alert Level 1 | . 1 . Low Security (%) 81 | 100 54 100 Level 1 18 | . 45 . Level 2 . | . . . Level 3 . | . . . Level 4 . | . . . Level 5 . | . . . High Security . | . . . Max Security . | . . . Squads Dispatched 2 | . 1 1 Investigation 2 | . 1 1 Extermination . | . . . Reinforcement . | . . . Assault . | . . . Garrison . | . . . Intercept . | . . . Searches Triggered . | . . . Construction Impeded . | . . . Haulers Reinforced . | . . . Active Scanning Responses . | . . . Cargo Convoy Interrupts . | . . . Stealth | -11 -10 -9 --------- Run | Yrd Mat Mat Distress Signals . | . . . Communications Jammed . | . . . Distress Signals . | . . . Times Spotted 21 | 1 13 7 Peak Tracking Total 5 | 1 5 3 Tactical Retreats . | . . . Traps | -11 -10 -9 ------- Run | Yrd Mat Mat Traps Triggered 2 | . 1 1 Indirectly 1 | . . 1 Trap Hack Attempts . | . . . Triggered . | . . . Disarmed 5 | . 5 . Reprogrammed . | . . . Reused . | . . . Traps Extracted . | . . . Installed . | . . . Triggered . | . . . Machines | -11 -10 -9 ---------- Run | Yrd Mat Mat Machines Disabled 10 | . 1 9 Max in Single Turn 5 | . 1 5 Machines Repaired . | . . . Machines Dismantled . | . . . Machines Sabotaged . | . . . Overloaded Fab Kills . | . . . Hacking | -11 -10 -9 --------- Run | Yrd Mat Mat Machines Accessed 4 | . 4 . Terminals 4 | . 4 . Fabricators . | . . . Repair Stations . | . . . Recycling Units . | . . . Scanalyzers . | . . . Garrison Access . | . . . Total Hacks 17 | . 17 . Successful 13 | . 13 . Failed 4 | . 4 . Catastrophic . | . . . Database Lockouts . | . . . Manual . | . . . Terminals 17 | . 17 . Fabricators . | . . . Repair Stations . | . . . Recycling Units . | . . . Scanalyzers . | . . . Garrison Access . | . . . Terminal Hacks 13 | . 13 . Record 5 | . 5 . Prototype ID Bank 1 | . 1 . Locate Traps 2 | . 2 . Disarm Traps 1 | . 1 . Transport Status 1 | . 1 . Hauler Manifests 1 | . 1 . Zone Layout 2 | . 2 . Fabricator Hacks . | . . . Repair Station Hacks . | . . . Recycling Unit Hacks . | . . . Scanalyzer . | . . . Garrison Access Hacks . | . . . Unauthorized Hacks . | . . . Terminals . | . . . Fabricators . | . . . Repair Stations . | . . . Recycling Units . | . . . Scanalyzers . | . . . Garrison Access . | . . . Data Cores Recovered 1 | . 1 . Used . | . . . Hacking Detections 4 | . 4 . Full Trace Events 2 | . 2 . Feedback Events . | . . . Feedback Blocked . | . . . Robot Schematics Acquired . | . . . Robots Built . | . . . Authchips . | . . . Time . | . . . Total Robot Build Rating . | . . . Part Schematics Acquired . | . . . Parts Built . | . . . Authchips . | . . . Time . | . . . Total Part Build Rating . | . . . Parts Repaired . | . . . Time . | . . . Parts Recycled . | . . . Recycled Matter . | . . . Retrieved Matter . | . . . Retrieved Components . | . . . Parts Scanalyzed . | . . . Part Schematics Acquired . | . . . Parts Damaged . | . . . Bothacking | -11 -10 -9 ------------ Run | Yrd Mat Mat Used RIF Installer . | . . . Robots Hacked 1 | . 1 . Non-combat . | . . . Combat 1 | . 1 . Robot Hacks Applied 1 | . 1 . parse_system 1 | . 1 . Relay Couplers Released . | . . . Fabnet Peak Effective % . | . . . Robots Rewired . | . . . Allies Hacked . | . . . Hacks Repelled . | . . . Allies | -11 -10 -9 -------- Run | Yrd Mat Mat Total Allies . | . . . Largest Group . | . . . Highest-Rated Group . | . . . Highest-Rated Ally . | . . . Total Orders . | . . . Ally Attacks . | . . . Total Damage . | . . . Kills . | . . . Allies Corrupted . | . . . Allies Melted . | . . . Intel | -11 -10 -9 ------- Run | Yrd Mat Mat Robot Analysis Total . | . . . Derelict Logs Recovered . | . . . Drone Launches . | . . . Drone Recoveries . | . . . Exploration | -11 -10 -9 ------------- Run | Yrd Mat Mat Turns Passed 1542 | 95 625 822 Spaces Moved 531 | 66 288 177 Core 25 | 21 . 4 Treads . | . . . Legs 395 | 45 177 173 Wheels . | . . . Hover . | . . . Flight 111 | . 111 . Fastest Speed 32 | 50 32 400 Average Speed 260 | 97 192 431 Slowest Speed 1550 | 120 400 1550 Overloaded Moves . | . . . Propulsion Burnouts . | . . . Robots Hopped 1 | . 1 . Cave-ins Triggered . | . . . Exploration Rate (%) 24 | 5 55 14 Regions Visited 2 Branch Regions . Pre-discovered Areas . | . . . Known Exits Taken . | . . . Unknown Exits Taken 2 | 1 1 . Scrap Searched . | . . . Spaces Dug . | . . . Terrain Destroyed 94 | . 46 48 Melee . | . . . Projectile . | . . . AOE 94 | . 46 48 Terrain Rammed . | . . . Walls Destroyed . | . . . Machines Disabled . | . . . Actions | -11 -10 -9 --------- Run | Yrd Mat Mat Total 637 | 85 336 216 Wait 10 | . . 10 Move 527 | 65 285 177 Hop 1 | . 1 . Pick Up 23 | 7 10 6 Fast Attach . | . . . Attach 17 | 6 1 10 Detach . | . . . Swap 15 | . 14 1 Drop 5 | . 5 . Fire 35 | 7 16 12 Melee 4 | . 4 . Ram . | . . . Kick . | . . . Crush . | . . . Escape Stasis . | . . . Rewire . | . . . Trap . | . . . Miscellaneous . | . . . Route ------- -11/Scrapyard -10/Materials (discovered 3 exits: [*Mat x2] / [*Min]) -9/Materials History --------- Turn | Location | Event 2 | -11/Scrapyard | Met Revision 17 64 | -11/Scrapyard | Discovered new exit (range 8) 96 | -11/Scrapyard | Entered Materials 299 | -10/Materials | Discovered new exit (range 10) 391 | -10/Materials | Discovered new exit (range 12) 579 | -10/Materials | Build established: Mutant 709 | -10/Materials | Discovered new exit (range 4) 721 | -10/Materials | Entered another Materials area 721 | -9/Materials | Evolved 2 slots: Power x1, Weapon x1 1028 | -9/Materials | Build established: Bomber 1445 | -9/Materials | Lost 8 parts (1p2n1u4w) 1452 | -9/Materials | Core integrity fell below 50% 1511 | -9/Materials | Lost 3 parts (1n1u1w) 1517 | -9/Materials | Core integrity fell below 20% 1543 | -9/Materials | Destroyed by S-10 Pest with Light Assault Rifle Last Messages --------------- 01470_ K-01 Serf collects debris. 01480_ Sensor Array destroyed. 01481_ K-01 Serf collects debris. 01484_ Chain reaction triggered in Corrupted Lgt. Ion Engine. 01484_ S-10 Pest destroyed. 01484_ Destroyed Flight Unit. 01500_ The unstable cave ceiling collapses. 01501_ S-10 Pest misfires. 01520_ K-01 Serf collects debris. 01525_ Field Laser destroyed. 01525_ K-01 Serf collects debris. 01526_ The unstable cave ceiling collapses. 01531_ K-01 Serf collects debris. 01534_ Adv. EMP Blaster destroyed. 01537_ K-01 Serf collects debris. 01538_ Acquired Corrupted Beam Rifle. 01539_ Integrated Corrupted Beam Rifle (+6). 01540_ The unstable cave ceiling collapses. 01540_ Field Laser destroyed. 01541_ K-01 Serf collects debris. Map ----- +----------------------------------------------------+ | ????????????????????????????????????? | | ????????????????????????????????????? | | ????????????????????????????????????? | | ????????????????????????????????????? | | ????????????????????????????????????? | | ?????????###????????????????????????? | | ?????????# ????????????????????????? | | ?????????# ??????????????????????? | | ?????????+ ?????????????????????? | | ?????????# ?????????????????????? | | ?????????? ?????????????????????? | | ??????????# #?????????????????????? | | ??????????# k#?????????##########??? | | ???????#### [%###???????# #??? | | ?????? # =# ######### #??? | | ??????? !g """ # #??? | | ?????? sg* "Y" # #??? | | ??"" """[ ! + #??? | | ??? """=#! # #??? | | ???? """ # #??? | | ????? k # #??? | | ??????? # #??? | | ????????## ##########??? | | ######### # #??? | | # # """ #??? | | # ## @ """ #??? | | # # = """ #??? | | # = #??? | | # """ #??? | | # # """ #??? | | # # """ #??? | | # #??? | | # # #########??? | | ######+### ##??????????? | | ?????# #?# # #??????????? | | ?????# ### #??????????? | | ?????# # ??????????? | | ?????# ########??? | | ?????# # #??? | | ?????# #??? | | ?????# #??? | | ?????# # """ #??? | | ?????# + """ #??? | | ?????# # """ #??? | | ###### ######### ###### """ #??? | | # #???????# #????# """ #??? | | #[ ]==#???????#####????# #??? | | #[ ]==#????????????????##########??? | | ########????????????????????????????? | | ????????????????????????????????????? | +----------------------------------------------------+ Best States ------------- Heat Dissipation 35 Energy Generation 10 Energy Capacity 125 Matter Stores 300 Matter Capacity 300 Sight Range 16 Robot Scan Range 14 Terrain Scan Density 10 Armor Coverage 225 Evasion (%) 63 Item Schematics ----------------- None Robot Schematics ------------------ None Fabricated ------------ Nothing Alien Tech Used ----------------- None Achievements -------------- Shopping List Challenges ------------ None Game ------ Seed CloakingSeismicLog Manual? 0 Play Time 00:16:57 Cumulative 5.7 hours Start 2024.03.26 @ 12:40:45 End 2024.03.26 @ 12:57:06 Sessions 1 Manual Loads 0 Difficulty Rogue Special Mode None Game No. 7 Rogue 5 Adventurer 2 Explorer 0 Win Type - Total 0 Types 0/0/0/0/0/0/0/0/0 Lore% 11 Gallery% 15 Achievement% 11 Wizard Run 0 Options --------- Layout 0 ASCII 1 Keyboard 0 Movement Mouse Keybinds 0 Fullscreen 1 Font 24/Smallcaps Map View 76x50 Zoom Use 0% Tactical HUD 1 Map Filters NONE Filters NONE Steam 1 RUN: d04caa77-1f7e-460a-a65f-7b745542c9d3